fUST/lending_fUST_20250730
["ID","MTS","AMOUNT","RATE_DAILY","PERIOD"]
[376086369,1753858240848,-460.0,0.00018854,2]
[376086371,1753858240862,-460.0,0.00018854,2]
[376086373,1753858240871,-270.46584525,0.00018854,2]
[376086375,1753858240881,-460.0,0.00018854,2]
[376086377,1753858240891,-462.46181561,0.00018854,2]
[376086379,1753858240901,-460.0,0.00018854,2]
[376086381,1753858240910,-460.0,0.00018854,2]
[376086383,1753858240919,-460.0,0.00018854,2]
[376086385,1753858240928,-460.0,0.00018854,2]
[376086387,1753858240938,-461.32839948,0.00018854,2]
[376086389,1753858240947,-460.7983167,0.00018854,2]
[376086391,1753858240956,-460.0,0.00018854,2]
[376086393,1753858240966,-460.0,0.00018854,2]
[376086395,1753858240975,-460.0,0.00018854,2]
[376086397,1753858240984,-460.0,0.00018854,2]
[376086399,1753858240994,-460.0,0.00018854,2]
[376086401,1753858241003,-466.81932942,0.00018854,2]
[376086403,1753858241012,-460.75672985,0.00018854,2]
[376086405,1753858241022,-460.0,0.00018854,2]
[376086407,1753858241034,-309.20834019,0.00018854,2]
[376086409,1753858241043,-460.0,0.00018854,2]
[376086411,1753858241052,-460.0,0.00018854,2]
[376086413,1753858241061,-460.0,0.00018854,2]
[376086415,1753858241071,-460.0,0.00018854,2]
[376086417,1753858241080,-460.0,0.00018854,2]
[376086419,1753858241089,-460.0,0.00018854,2]
[376086421,1753858241099,-460.0,0.00018854,2]
[376086423,1753858241108,-460.0,0.00018854,2]
[376086425,1753858241117,-460.0,0.00018854,2]
[376086427,1753858241127,-460.0,0.00018854,2]
[376086429,1753858241139,-460.0,0.00018854,2]
[376086431,1753858241148,-500.0,0.00018854,2]
[376086433,1753858241157,-460.0,0.00018854,2]
[376086435,1753858241166,-460.0,0.00018854,2]
[376086437,1753858241176,-460.0,0.00018854,2]
[376086439,1753858241185,-460.0,0.00018854,2]
[376086442,1753858241195,-473.3895602,0.00018854,2]
[376086444,1753858241204,-460.0,0.00018854,2]
[376086446,1753858241213,-595.56,0.00018854,2]
[376086448,1753858241223,-460.0,0.00018854,2]
[376086450,1753858241233,-460.0,0.00018854,2]
[376086452,1753858241241,-460.0,0.00018854,2]
[376086454,1753858241251,-460.0,0.00018854,2]
[376086456,1753858241260,-460.0,0.00018854,2]
[376086458,1753858241269,-460.0,0.00018854,2]
[376086460,1753858241278,-573.25,0.00018854,2]
[376086462,1753858241287,-401.89177496,0.00018854,2]
[376086464,1753858241296,-460.0,0.00018854,2]
[376086466,1753858241306,-460.0,0.00018854,2]
[376086467,1753858241315,-460.0,0.00018854,2]
[376086470,1753858241325,-460.0,0.00018854,2]
[376086472,1753858241334,-460.0,0.00018854,2]
[376086474,1753858241344,-460.0,0.00018854,2]
[376086476,1753858241354,-460.0,0.00018854,2]
[376086478,1753858241365,-460.0,0.00018854,2]
[376086479,1753858241374,-1141.6,0.00018854,2]
[376086482,1753858241385,-1413.86,0.00018854,2]
[376086483,1753858241394,-460.0,0.00018854,2]
[376086486,1753858241404,-460.0,0.00018854,2]
[376086488,1753858241413,-460.0,0.00018854,2]
[376086489,1753858241423,-460.0,0.00018854,2]
[376086491,1753858241432,-218.17574072,0.00018855,2]
[376086494,1753858241442,-461.46371556,0.00018855,2]
[376086496,1753858241451,-460.0,0.00018855,2]
[376086498,1753858241460,-460.0,0.00018855,2]
[376086499,1753858241469,-461.01346176,0.00018855,2]
[376086501,1753858241478,-462.31561383,0.00018855,2]
[376086504,1753858241488,-460.0,0.00018855,2]
[376086506,1753858241497,-460.0,0.00018855,2]
[376086508,1753858241507,-460.0,0.00018855,2]
[376086510,1753858241516,-460.0,0.00018855,2]
[376086512,1753858241525,-460.0,0.00018855,2]
[376086513,1753858241535,-460.0,0.00018855,2]
[376086516,1753858241544,-460.0,0.00018855,2]
[376086518,1753858241554,-460.0,0.00018855,2]
[376086520,1753858241563,-470.95,0.00018855,2]
[376086521,1753858241573,-460.0,0.00018855,2]
[376086523,1753858241585,-3905.59,0.00018855,2]
[376086526,1753858241595,-801.64,0.00018856,2]
[376086528,1753858241606,-1004.03,0.00018856,2]
[376086530,1753858241616,-460.0,0.00018856,2]
[376086532,1753858241626,-460.0,0.00018856,2]
[376086534,1753858241637,-1961.73,0.00018856,2]
[376086536,1753858241646,-500.0,0.00018856,2]
[376086538,1753858241658,-460.0,0.00018856,2]
[376086540,1753858241667,-1197.62,0.00018856,2]
[376086541,1753858241677,-1102.87,0.00018856,2]
[376086544,1753858241686,-460.0,0.00018857,2]
[376086546,1753858241696,-460.0,0.00018857,2]
[376086547,1753858241706,-460.0,0.00018857,2]
[376086550,1753858241715,-542.32104296,0.00018857,2]
[376086552,1753858241724,-461.43837568,0.00018857,2]
[376086553,1753858241734,-460.0,0.00018857,2]
[376086556,1753858241744,-461.13,0.00018857,2]
[376086557,1753858241753,-460.0,0.00018857,2]
[376086559,1753858241762,-616.29,0.00019118,3]
[376086561,1753858241772,-308.14,0.00019118,3]
[376086563,1753858241781,-154.07,0.00019118,3]
[376086566,1753858241791,-462.25,0.00019118,3]
[376086567,1753858241800,-460.0,0.00019126,2]
[376086569,1753858241810,-286.54302703,0.00019126,2]
[376086571,1753858241819,-460.0,0.00019126,2]
[376086573,1753858241829,-460.0,0.00019126,2]
[376086576,1753858241838,-1198.62,0.00019126,2]
[376086578,1753858241847,-460.0,0.00019126,2]
[376086580,1753858241857,-460.0,0.00019126,2]
[376086581,1753858241867,-460.0,0.00019127,2]
[376086584,1753858241876,-460.0,0.00019127,2]
[376086586,1753858241887,-460.0,0.00019127,2]
[376086587,1753858241896,-460.0,0.00019127,2]
[376086590,1753858241906,-2659.48,0.00019127,2]
[376086592,1753858241915,-460.0,0.00019127,2]
[376086594,1753858241924,-468.60865804,0.00019127,2]
[376086596,1753858241934,-460.0,0.00019127,2]
[376086598,1753858241951,-1532.21,0.00019127,2]
[376086600,1753858241971,-1532.21,0.00019127,2]
[376086602,1753858241981,-460.0,0.00019127,2]
[376086604,1753858241990,-589.36,0.00019127,2]
[376086606,1753858241999,-460.0,0.00019127,2]
[376086608,1753858242008,-460.0,0.00019127,2]
[376086610,1753858242017,-618.29,0.00019127,2]
[376086612,1753858242026,-478.67,0.00019127,2]
[376086614,1753858242035,-460.0,0.00019127,2]
[376086616,1753858242044,-1966.7,0.00019127,2]
[376086618,1753858242054,-583.74,0.00019127,2]
[376086620,1753858242063,-460.0,0.00019127,2]
[376086622,1753858242072,-460.0,0.00019127,2]
[376086624,1753858242081,-224.4,0.00019127,2]
[376086626,1753858242091,-460.0,0.00019127,2]
[376086628,1753858242100,-460.0,0.00019127,2]
[376086630,1753858242110,-893.26,0.00019127,2]
[376086632,1753858242119,-460.0,0.00019127,2]
[376086634,1753858242127,-460.0,0.00019127,2]
[376086636,1753858242138,-460.0,0.00019127,2]
[376086638,1753858242147,-460.0,0.00019127,2]
[376086640,1753858242156,-460.99316265,0.00019127,2]
[376086642,1753858242167,-460.0,0.00019127,2]
[376086644,1753858242176,-460.0,0.00019127,2]
[376086645,1753858242185,-460.0,0.00019127,2]
[376086647,1753858242195,-564.47,0.00019127,2]
[376086649,1753858242204,-460.0,0.00019127,2]
[376086652,1753858242214,-460.0,0.00019127,2]
[376086653,1753858242224,-460.0,0.00019127,2]
[376086656,1753858242234,-445.661773,0.00019127,2]
[376086658,1753858242244,-542.75,0.00019127,2]
[376086660,1753858242254,-460.0,0.00019127,2]
[376086661,1753858242263,-460.0,0.00019127,2]
[376086663,1753858242274,-460.0,0.00019128,2]
[376086665,1753858242283,-462.90058989,0.00019128,2]
[376086667,1753858242292,-460.0,0.00019128,2]
[376086669,1753858242302,-460.0,0.00019128,2]
[376086671,1753858242311,-460.0,0.00019128,2]
[376086673,1753858242321,-460.0,0.00019128,2]
[376086675,1753858242330,-460.0,0.00019128,2]
[376086677,1753858242339,-460.0,0.00019128,2]
[376086679,1753858242348,-460.0,0.00019128,2]
[376086681,1753858242358,-460.0,0.00019128,2]
[376086683,1753858242367,-460.0,0.00019128,2]
[376086685,1753858242376,-595.56,0.00019128,2]
[376086687,1753858242384,-460.0,0.00019128,2]
[376086689,1753858242393,-460.0,0.00019128,2]
[376086691,1753858242402,-460.0,0.00019128,2]
[376086693,1753858242411,-460.0,0.00019128,2]
[376086696,1753858242420,-460.0,0.00019128,2]
[376086698,1753858242430,-460.0,0.00019128,2]
[376086700,1753858242439,-573.25,0.00019128,2]
[376086702,1753858242447,-460.0,0.00019128,2]
[376086704,1753858242456,-460.0,0.00019128,2]
[376086706,1753858242466,-460.0,0.00019128,2]
[376086708,1753858242475,-1141.6,0.00019128,2]
[376086710,1753858242485,-1413.86,0.00019128,2]
[376086712,1753858242494,-460.0,0.00019129,2]
[376086714,1753858242503,-460.0,0.00019129,2]
[376086715,1753858242512,-3905.59,0.00019129,2]
[376086717,1753858242522,-801.64,0.0001913,2]
[376086720,1753858242531,-1004.03,0.0001913,2]
[376086722,1753858242540,-460.0,0.0001913,2]
[376086723,1753858242549,-1961.73,0.0001913,2]
[376086726,1753858242559,-460.0,0.0001913,2]
[376086728,1753858242568,-1197.62,0.0001913,2]
[376086730,1753858242579,-1102.87,0.0001913,2]
[376086732,1753858242589,-488.23349319,0.00019131,2]
[376086734,1753858242598,-461.13,0.00019131,2]
[376086737,1753858242607,-460.0,0.00019131,2]
[376086739,1753858242616,-5000.0,0.00019178,2]
[376086740,1753858242626,-200.0,0.00019229,15]
[376086742,1753858242635,-200.0,0.00019229,15]
[376086745,1753858242645,-200.0,0.00019229,15]
[376086746,1753858242654,-200.0,0.00019229,15]
[376086748,1753858242663,-200.0,0.00019229,15]
[376086750,1753858242673,-200.0,0.00019229,15]
[376086752,1753858242683,-200.0,0.00019229,15]
[376086754,1753858242692,-200.0,0.00019229,15]
[376086756,1753858242702,-200.0,0.00019229,15]
[376086758,1753858242711,-200.0,0.00019229,15]
[376086761,1753858242721,-200.0,0.00019229,15]
[376086763,1753858242730,-200.0,0.00019229,15]
[376086765,1753858242740,-200.0,0.00019229,15]
[376086766,1753858242750,-200.0,0.00019229,15]
[376086768,1753858242759,-200.0,0.00019229,15]
[376086771,1753858242770,-200.0,0.00019229,15]
[376086773,1753858242779,-285.50059728,0.00019303,2]
[376086776,1753858242788,-454.29992195,0.00019339,2]
[376086778,1753858242797,-500.0,0.00019339,2]
[376086780,1753858242806,-538.47456461,0.00019339,2]
[376086781,1753858242815,-500.59873471,0.00019339,2]
[376086783,1753858242824,-500.0,0.00019339,2]
[376086785,1753858242834,-500.0,0.00019339,2]
[376086787,1753858242843,-320.28272182,0.00019339,2]
[376086789,1753858242852,-500.0,0.00019339,2]
[376086791,1753858242861,-159.78902216,0.00019339,2]
[376086793,1753858242870,-237.69986304,0.00019339,2]
[376086795,1753858242880,-500.0,0.00019339,2]
[376086798,1753858242889,-500.0,0.00019339,2]
[376086800,1753858242898,-501.16152977,0.00019339,2]
[376086801,1753858242907,-500.0,0.00019339,2]
[376086804,1753858242917,-460.0,0.000194,2]
[376086805,1753858242926,-361.01,0.000194,2]
[376086807,1753858242936,-460.0,0.000194,2]
[376086809,1753858242945,-1198.62,0.000194,2]
[376086811,1753858242954,-235.20296399,0.000194,2]
[376086813,1753858242963,-440.39943473,0.000194,2]
[376086815,1753858242972,-460.0,0.00019401,2]
[376086817,1753858242981,-460.0,0.00019401,2]
[376086819,1753858242990,-460.0,0.00019401,2]
[376086821,1753858243000,-1532.21,0.00019401,2]
[376086824,1753858243009,-1532.21,0.00019401,2]
[376086826,1753858243021,-460.0,0.00019401,2]
[376086828,1753858243030,-460.0,0.00019401,2]
[376086830,1753858243039,-460.0,0.00019401,2]
[376086832,1753858243050,-618.29,0.00019401,2]
[376086834,1753858243059,-460.0,0.00019401,2]
[376086836,1753858243068,-1966.7,0.00019401,2]
[376086838,1753858243077,-277.99220532,0.00019401,2]
[376086840,1753858243086,-460.0,0.00019401,2]
[376086842,1753858243095,-460.0,0.00019401,2]
[376086844,1753858243104,-460.0,0.00019401,2]
[376086846,1753858243113,-893.26,0.00019401,2]
[376086848,1753858243124,-460.0,0.00019401,2]
[376086850,1753858243133,-460.0,0.00019401,2]
[376086852,1753858243143,-460.0,0.00019401,2]
[376086854,1753858243152,-460.0,0.00019401,2]
[376086856,1753858243161,-460.0,0.00019401,2]
[376086858,1753858243170,-564.47,0.00019401,2]
[376086860,1753858243179,-291.97754681,0.00019401,2]
[376086862,1753858243188,-460.0,0.00019401,2]
[376086864,1753858243197,-460.0,0.00019401,2]
[376086866,1753858243206,-460.0,0.00019401,2]
[376086868,1753858243215,-460.0,0.00019401,2]
[376086870,1753858243224,-523.15903396,0.00019402,2]
[376086872,1753858243233,-460.0,0.00019402,2]
[376086874,1753858243242,-428.4830695,0.00019402,2]
[376086876,1753858243252,-460.0,0.00019402,2]
[376086878,1753858243261,-460.0,0.00019402,2]
[376086880,1753858243270,-460.0,0.00019402,2]
[376086882,1753858243279,-595.56,0.00019402,2]
[376086884,1753858243288,-460.0,0.00019402,2]
[376086886,1753858243298,-467.31771116,0.00019402,2]
[376086888,1753858243306,-460.0,0.00019402,2]
[376086890,1753858243316,-460.0,0.00019402,2]
[376086892,1753858243325,-572.27,0.00019402,2]
[376086894,1753858243334,-200.0,0.00019402,10]
[376086896,1753858243343,-178.569116,0.00019402,10]
[376086898,1753858243352,-573.25,0.00019402,2]
[376086900,1753858243361,-460.0,0.00019402,2]
[376086902,1753858243370,-460.0,0.00019402,2]
[376086904,1753858243379,-1141.6,0.00019402,2]
[376086906,1753858243389,-1413.86,0.00019402,2]
[376086908,1753858243398,-460.0,0.00019403,2]
[376086910,1753858243407,-3905.59,0.00019403,2]
[376086912,1753858243416,-500.0,0.00019403,2]
[376086914,1753858243426,-801.64,0.00019404,2]
[376086916,1753858243435,-1004.03,0.00019404,2]
[376086918,1753858243444,-460.0,0.00019404,2]
[376086920,1753858243453,-1961.73,0.00019404,2]
[376086921,1753858243463,-460.0,0.00019404,2]
[376086923,1753858243472,-1197.62,0.00019404,2]
[376086936,1753858243588,-1102.87,0.00019404,2]
[376086939,1753858243598,-461.13,0.00019405,2]
[376086941,1753858243608,-460.0,0.00019405,2]
[376086943,1753858243618,-500.84356237,0.00019422,2]
[376086945,1753858243627,-507.02003151,0.00019422,2]
[376086947,1753858243637,-500.82702739,0.00019422,2]
[376086949,1753858243647,-500.42481592,0.00019422,2]
[376086951,1753858243657,-634.12630307,0.00019454,2]
[376086953,1753858243668,-626.92464821,0.00019494,2]
[376086955,1753858243677,-502.59093039,0.00019494,2]
[376086957,1753858243687,-500.0,0.00019518,2]
[376086959,1753858243696,-500.0,0.00019518,2]
[376086961,1753858243706,-500.0,0.00019518,2]
[376086963,1753858243715,-503.20984509,0.00019543,2]
[376086965,1753858243725,-500.0,0.00019543,2]
[376086967,1753858243735,-502.77131822,0.00019543,2]
[376086969,1753858243745,-156.7680326,0.000196,2]
[376086971,1753858243755,-153.0,0.000196,2]
[376086973,1753858243764,-153.0,0.000196,2]
[376086975,1753858243773,-153.0,0.000196,2]
[376086977,1753858243783,-153.0,0.000196,2]
[376086979,1753858243792,-500.0,0.00019672,2]
[376086981,1753858243802,-500.0,0.00019672,2]
[376086983,1753858243812,-500.0,0.00019672,2]
[376086985,1753858243822,-500.0,0.00019672,2]
[376086987,1753858243831,-299.41,0.00019674,2]
[376086989,1753858243841,-309.21,0.00019674,2]
[376086991,1753858243850,-1198.62,0.00019674,2]
[376086993,1753858243859,-236.46136199,0.00019675,2]
[376086994,1753858243869,-1532.21,0.00019675,2]
[376086997,1753858243879,-460.55,0.00019675,2]
[376086999,1753858243890,-460.0,0.00019675,2]
[376087000,1753858243900,-460.0,0.00019675,2]
[376087003,1753858243910,-618.29,0.00019675,2]
[376087005,1753858243919,-460.0,0.00019675,2]
[376087007,1753858243928,-1966.7,0.00019675,2]
[376087009,1753858243937,-460.0,0.00019675,2]
[376087011,1753858243946,-460.0,0.00019675,2]
[376087012,1753858243956,-460.0,0.00019675,2]
[376087014,1753858243966,-893.26,0.00019675,2]
[376087017,1753858243976,-460.0,0.00019675,2]
[376087018,1753858243986,-460.0,0.00019675,2]
[376087020,1753858243995,-460.0,0.00019675,2]
[376087022,1753858244005,-460.0,0.00019675,2]
[376087025,1753858244015,-460.0,0.00019675,2]
[376087027,1753858244024,-564.47,0.00019675,2]
[376087029,1753858244034,-460.0,0.00019675,2]
[376087030,1753858244044,-199.05,0.00019675,2]
[376087033,1753858244054,-460.0,0.00019675,2]
[376087035,1753858244063,-310.4,0.00019675,2]
[376087036,1753858244076,-500.0,0.00019675,2]
[376087039,1753858244087,-398.68845294,0.00019675,2]
[376087041,1753858244096,-500.0,0.00019675,2]
[376087042,1753858244105,-299.98686308,0.00019675,2]
[376087045,1753858244115,-501.7886751,0.00019675,2]
[376087046,1753858244124,-465.22099106,0.00019675,2]
[376087048,1753858244133,-500.0,0.00019675,2]
[376087051,1753858244144,-500.0,0.00019675,2]
[376087052,1753858244154,-500.0,0.00019675,2]
[376087054,1753858244163,-438.52217053,0.00019675,2]
[376087056,1753858244173,-500.0,0.00019675,2]
[376087059,1753858244182,-500.0,0.00019675,2]
[376087060,1753858244191,-500.0,0.00019675,2]
[376087061,1753858244200,-500.0,0.00019675,2]
[376087062,1753858244210,-183.47667746,0.00019675,2]
[376087063,1753858244219,-500.0,0.00019675,2]
[376087064,1753858244228,-500.0,0.00019675,2]
[376087065,1753858244238,-500.0,0.00019675,2]
[376087066,1753858244247,-500.0,0.00019675,2]
[376087067,1753858244257,-500.0,0.00019675,2]
[376087068,1753858244277,-500.0,0.00019675,2]
[376087069,1753858244290,-363.0,0.00019675,2]
[376087070,1753858244299,-500.0,0.00019675,2]
[376087072,1753858244308,-500.0,0.00019675,2]
[376087073,1753858244317,-500.0,0.00019675,2]
[376087074,1753858244327,-500.0,0.00019675,2]
[376087076,1753858244336,-500.0,0.00019675,2]
[376087078,1753858244346,-311.43240141,0.00019675,2]
[376087080,1753858244355,-500.0,0.00019675,2]
[376087082,1753858244364,-500.0,0.00019675,2]
[376087084,1753858244373,-267.86403594,0.00019675,2]
[376087086,1753858244383,-500.0,0.00019675,2]
[376087088,1753858244392,-500.0,0.00019675,2]
[376087090,1753858244401,-500.0,0.00019675,2]
[376087092,1753858244411,-500.0,0.00019675,2]
[376087094,1753858244420,-500.0,0.00019675,2]
[376087096,1753858244430,-500.0,0.00019675,2]
[376087098,1753858244440,-500.0,0.00019675,2]
[376087100,1753858244449,-500.0,0.00019675,2]
[376087102,1753858244458,-500.0,0.00019675,2]
[376087104,1753858244468,-500.0,0.00019675,2]
[376087106,1753858244477,-633.63677801,0.00019675,2]
[376087108,1753858244487,-500.0,0.00019675,2]
[376087110,1753858244496,-500.0,0.00019675,2]
[376087112,1753858244505,-460.0,0.00019676,2]
[376087114,1753858244515,-460.0,0.00019676,2]
[376087116,1753858244524,-460.0,0.00019676,2]
[376087118,1753858244534,-460.0,0.00019676,2]
[376087120,1753858244544,-595.56,0.00019676,2]
[376087122,1753858244553,-460.0,0.00019676,2]
[376087124,1753858244563,-460.0,0.00019676,2]
[376087126,1753858244574,-460.0,0.00019676,2]
[376087128,1753858244584,-573.25,0.00019676,2]
[376087130,1753858244594,-460.0,0.00019676,2]
[376087132,1753858244603,-460.0,0.00019676,2]
[376087134,1753858244612,-1141.6,0.00019676,2]
[376087136,1753858244622,-1413.86,0.00019676,2]
[376087138,1753858244632,-460.0,0.00019677,2]
[376087140,1753858244642,-3905.59,0.00019677,2]
[376087142,1753858244651,-801.64,0.00019678,2]
[376087144,1753858244661,-1004.03,0.00019678,2]
[376087146,1753858244671,-460.0,0.00019678,2]
[376087148,1753858244681,-1961.73,0.00019678,2]
[376087150,1753858244690,-460.0,0.00019678,2]
[376087152,1753858244700,-1197.62,0.00019678,2]
[376087154,1753858244709,-1102.87,0.00019678,2]
[376087156,1753858244718,-461.13,0.00019679,2]
[376087158,1753858244728,-460.0,0.00019679,2]
[376087160,1753858244737,-6076.72525026,0.00019776,2]
[376087162,1753858244746,-500.0,0.00019887,2]
[376087164,1753858244755,-500.0,0.00019887,2]
[376087166,1753858244764,-500.0,0.00019887,2]
[376087168,1753858244774,-1855.56926084,0.000199,2]
[376087170,1753858244783,-1198.62,0.00019948,2]
[376087172,1753858244792,-2775.11,0.00019949,2]
[376087174,1753858244801,-1532.21,0.00019949,2]
[376087176,1753858244811,-460.0,0.00019949,2]
[376087178,1753858244820,-460.0,0.00019949,2]
[376087180,1753858244829,-618.29,0.00019949,2]
[376087182,1753858244837,-309.28,0.00019949,2]
[376087184,1753858244846,-1966.7,0.00019949,2]
[376087186,1753858244856,-460.0,0.00019949,2]
[376087187,1753858244864,-460.0,0.00019949,2]
[376087189,1753858244874,-460.0,0.00019949,2]
[376087191,1753858244883,-893.26,0.00019949,2]
[376087193,1753858244892,-460.0,0.00019949,2]
[376087196,1753858244902,-460.0,0.00019949,2]
[376087198,1753858244911,-460.0,0.00019949,2]
[376087199,1753858244921,-460.0,0.00019949,2]
[376087201,1753858244931,-173.5,0.00019949,2]
[376087203,1753858244940,-564.47,0.00019949,2]
[376087205,1753858244949,-521.13463741,0.00019949,2]
[376087208,1753858244959,-460.0,0.00019949,2]
[376087209,1753858244968,-460.0,0.0001995,2]
[376087211,1753858244977,-460.0,0.0001995,2]
[376087213,1753858244987,-460.0,0.0001995,2]
[376087215,1753858244996,-460.0,0.0001995,2]
[376087218,1753858245006,-595.56,0.0001995,2]
[376087219,1753858245015,-460.0,0.0001995,2]
[376087222,1753858245025,-460.0,0.0001995,2]
[376087223,1753858245034,-460.0,0.0001995,2]
[376087225,1753858245044,-573.25,0.0001995,2]
[376087227,1753858245054,-273.5,0.0001995,2]
[376087229,1753858245064,-460.0,0.0001995,2]
[376087231,1753858245074,-1141.6,0.0001995,2]
[376087234,1753858245083,-1413.86,0.0001995,2]
[376087235,1753858245092,-460.0,0.00019951,2]
[376087238,1753858245102,-3905.59,0.00019951,2]
[376087239,1753858245111,-801.64,0.00019952,2]
[376087241,1753858245120,-1004.03,0.00019952,2]
[376087242,1753858245129,-460.0,0.00019952,2]
[376087244,1753858245139,-1961.73,0.00019952,2]
[376087246,1753858245148,-460.0,0.00019952,2]
[376087248,1753858245157,-1197.62,0.00019952,2]
[376087250,1753858245167,-1102.87,0.00019952,2]
[376087252,1753858245176,-461.13,0.00019953,2]
[376087253,1753858245185,-460.0,0.00019953,2]
[376087254,1753858245194,-634.96292113,0.00019961,2]
[376087255,1753858245203,-226.36388906,0.00019973,2]
[376087257,1753858245213,-501.29507856,0.00019973,2]
[376087259,1753858245222,-501.2416567,0.00019973,2]
[376087261,1753858245231,-500.0,0.00019973,2]
[376087262,1753858245240,-500.0,0.00019973,2]
[376087263,1753858245249,-500.0,0.00019973,2]
[376087264,1753858245259,-500.0,0.00019973,2]
[376087265,1753858245268,-500.0,0.00019973,2]
[376087266,1753858245277,-500.67139671,0.00019973,2]
[376087268,1753858245286,-500.0,0.00019973,2]
[376087271,1753858245296,-231.43925844,0.00019974,2]
[376087274,1753858245305,-160.0,0.00019974,2]
[376087275,1753858245314,-160.0,0.00019974,2]
[376087276,1753858245323,-12639.5777639,0.00019974,2]
[376087277,1753858245332,-312.16666667,0.00019974,2]
[376087278,1753858245342,-160.0,0.00019974,2]
[376087280,1753858245351,-526.76118213,0.00019974,2]
[376087282,1753858245360,-160.0,0.00019974,2]
[376087284,1753858245370,-460.59675358,0.00019974,2]
[376087286,1753858245379,-160.0,0.00019974,2]
[376087288,1753858245389,-214.95885286,0.00019974,2]
[376087290,1753858245398,-160.0,0.00019974,2]
[376087292,1753858245408,-841.2246943,0.00019974,2]
[376087293,1753858245422,-216.14611358,0.00019974,2]
[376087294,1753858245431,-59440.10703324,0.00019998,2]
[376087295,1753858245441,-500.0,0.00019999,2]
[376087296,1753858245450,-500.0,0.00019999,2]
[376087298,1753858245459,-500.0,0.00019999,2]
[376087299,1753858245469,-500.0,0.00019999,2]
[376087300,1753858245478,-290.28255453,0.00019999,2]
[376087301,1753858245487,-272123.23,0.0002,2]
[376087302,1753858245497,-345846.07,0.0002,2]
[376087303,1753858245506,-285.50059728,0.00020002,2]
[376087304,1753858245515,-4000.0,0.00020015,4]
[376087305,1753858245525,-847.85040679,0.0002002,2]
[376087306,1753858245535,-500.0,0.00020066,2]
[376087307,1753858245544,-1000.0,0.00020066,2]
[376087308,1753858245554,-501.62526512,0.00020066,2]
[376087309,1753858245563,-1855.56926075,0.00020072,2]
[376087310,1753858245574,-800.0,0.00020081,2]
[376087311,1753858245584,-1000.0,0.00020091,2]
[376087312,1753858245593,-202.252944,0.00020187,2]
[376087313,1753858245602,-987.43394551,0.0002022,2]
[376087314,1753858245611,-500.0,0.0002022,2]
[376087315,1753858245621,-1000.0,0.0002022,2]
[376087316,1753858245630,-502.07853402,0.0002022,2]
[376087317,1753858245641,-1198.62,0.00020222,2]
[376087318,1753858245651,-2775.11,0.00020223,2]
[376087319,1753858245660,-1532.21,0.00020223,2]
[376087320,1753858245670,-460.0,0.00020223,2]
[376087321,1753858245679,-448.59501137,0.00020223,2]
[376087322,1753858245689,-618.29,0.00020223,2]
[376087323,1753858245698,-1966.7,0.00020223,2]
[376087324,1753858245707,-460.0,0.00020223,2]
[376087325,1753858245716,-460.0,0.00020223,2]